bitfinex/quotes_SOLUSD_20250223
["timestamp","ask_amount","ask_price","bid_price","bid_amount"]
[1740352469350,14.42493326,168.56,168.5,34.42493326]
[1740352469549,14.42493326,168.56,168.5,14.42493326]
[1740352469774,7.12,168.6,168.47,5.9357]
[1740352469775,23.0192735,168.53,168.47,5.9357]
[1740352469985,18.64964886,168.57,168.45,23.0192735]
[1740352470166,18.64964886,168.57,168.43,5.9371]
[1740352470360,23.0192735,168.5,168.43,5.9371]
[1740352470564,23.0192735,168.5,168.44,23.0192735]
[1740352471084,23.0192735,168.49,168.43,23.0192735]
[1740352471247,23.0192735,168.5,168.44,43.0192735]
[1740352471574,23.0192735,168.48,168.4,12.4404]
[1740352471757,23.0192735,168.46,168.4,28.9571735]
[1740352471953,23.0192735,168.44,168.39,5.9384]
[1740352472360,23.0192735,168.46,168.4,23.0192735]
[1740352473174,23.0192735,168.46,168.4,28.9571735]
[1740352474464,23.0192735,168.49,168.44,23.0192735]
[1740352474783,23.0192735,168.49,168.44,81.1]
[1740352474979,23.0192735,168.47,168.44,81.1]
[1740352475187,23.0192735,168.46,168.44,81.1]
[1740352475380,23.0192735,168.47,168.44,81.1]
[1740352476160,23.0192735,168.48,168.44,81.1]
[1740352477383,23.0192735,168.48,168.44,81.163]
[1740352477888,23.0192735,168.47,168.44,81.163]
[1740352478072,23.0192735,168.46,168.44,81.163]
[1740352478290,23.0192735,168.48,168.44,81.163]
[1740352478480,23.0492735,168.5,168.45,23.0192735]
[1740352478786,23.0192735,168.49,168.44,87.0995]
[1740352478985,23.0192735,168.46,168.44,81.163]
[1740352479390,23.0192735,168.47,168.44,81.163]
[1740352479596,23.0192735,168.48,168.44,81.163]
[1740352480070,23.0192735,168.47,168.44,81.163]
[1740352480671,23.0192735,168.48,168.44,81.163]
[1740352480975,23.0192735,168.47,168.44,81.163]
[1740352481177,23.0192735,168.46,168.44,81.163]
[1740352481366,23.0192735,168.45,168.44,81.163]
[1740352481568,23.0192735,168.45,168.44,0.063]
[1740352481774,50.19838648,168.5,168.44,0.063]
[1740352481979,23.0192735,168.45,168.44,0.063]
[1740352482586,23.0192735,168.46,168.44,0.063]
[1740352483692,23.0192735,168.48,168.44,0.063]
[1740352483887,23.0192735,168.51,168.44,23.0822735]
[1740352484092,23.0192735,168.51,168.45,23.0192735]
[1740352484399,23.0192735,168.51,168.45,104.1192735]
[1740352484582,23.0192735,168.52,168.46,28.9553735]
[1740352484787,23.0192735,168.53,168.47,23.0192735]
[1740352485094,23.0192735,168.52,168.47,23.0192735]
[1740352485278,23.0192735,168.52,168.46,28.9553735]
[1740352485473,23.0192735,168.53,168.47,23.0192735]
[1740352486000,23.0192735,168.54,168.48,23.0192735]
[1740352486199,23.0192735,168.54,168.48,104.1192735]
[1740352486576,23.0192735,168.56,168.5,23.0192735]
[1740352486782,23.0192735,168.57,168.51,23.0192735]
[1740352486988,23.0192735,168.57,168.52,23.0192735]
[1740352487385,23.0192735,168.58,168.52,23.0192735]
[1740352487594,5.9305,168.62,168.54,23.0192735]
[1740352487798,23.0192735,168.6,168.55,23.0192735]
[1740352488112,23.0192735,168.59,168.54,18.64964886]
[1740352488326,23.0192735,168.61,168.56,18.64964886]
[1740352488488,23.0192735,168.6,168.56,5.9326]
[1740352488690,23.0192735,168.61,168.56,5.9326]
[1740352489287,5.9299,168.64,168.56,5.9326]
[1740352489500,23.0192735,168.61,168.56,5.9326]
[1740352490321,5.9294,168.65,168.58,23.0192735]
[1740352490503,23.0192735,168.64,168.58,23.0192735]
[1740352490712,23.0192735,168.63,168.57,23.0192735]
[1740352491028,23.0192735,168.62,168.57,18.64964886]
[1740352491238,23.0192735,168.63,168.57,41.66892236]
[1740352491397,23.0192735,168.66,168.6,23.0192735]
[1740352491599,23.0192735,168.65,168.59,28.9507735]
[1740352492022,0.03,168.67,168.61,23.0192735]
[1740352492203,0.03,168.67,168.59,5.9315]
[1740352492204,23.0192735,168.66,168.6,23.0192735]
[1740352492417,23.0492735,168.67,168.61,23.0192735]
[1740352492605,0.03,168.67,168.62,23.0192735]
[1740352492803,23.0192735,168.66,168.6,41.66892236]
[1740352493131,23.0192735,168.65,168.6,41.66892236]
[1740352493369,23.0492735,168.67,168.61,28.9500735]
[1740352493526,0.03,168.67,168.63,41.66892236]
[1740352494219,0.03,168.67,168.64,23.0192735]
[1740352495223,0.03,168.67,168.65,5.9294]
[1740352495610,0.03,168.67,168.63,41.66892236]
[1740352495810,0.03,168.67,168.62,23.0192735]
[1740352496009,0.03,168.67,168.59,21.0]
[1740352496010,23.0192735,168.65,168.6,5.9311]
[1740352496322,23.0192735,168.63,168.55,20.7648]
[1740352496525,23.0192735,168.65,168.6,20.0]
[1740352497446,23.0192735,168.64,168.6,20.0]
[1740352497823,23.0192735,168.65,168.6,25.9311]
[1740352498466,5.9589,168.67,168.6,25.9311]
[1740352498467,0.03,168.67,168.62,23.0192735]
[1740352498755,0.03,168.67,168.63,23.0192735]
[1740352499350,0.03,168.67,168.64,5.9297]
[1740352500547,0.03,168.67,168.66,20.0]
[1740352500748,0.03,168.67,168.65,23.0192735]
[1740352501245,0.03,168.67,168.65,22.0192735]
[1740352501444,0.03,168.67,168.66,5.929]
[1740352501648,0.03,168.67,168.66,47.59792236]
[1740352502553,0.0001,168.67,168.66,48.59792236]
[1740352502751,5.9242,168.8,168.7,20.0]
[1740352503050,15.2024779,168.86,168.78,23.0192735]
[1740352503369,23.0192735,168.84,168.78,23.0192735]
[1740352503560,23.0192735,168.85,168.78,23.0192735]
[1740352503769,6.3071,168.86,168.78,23.0192735]
[1740352503770,6.3071,168.86,168.81,23.0192735]
[1740352504074,6.3071,168.91,168.87,20.0]
[1740352504230,0.97,168.96,168.9,23.0192735]
[1740352504426,0.97,168.98,168.93,20.0]
[1740352504658,0.97,169.03,168.96,23.0192735]
[1740352504853,0.97,169.05,169.02,23.0192735]
[1740352505059,0.97,169.05,169.04,20.0]
[1740352505259,0.21247017,169.07,169.04,20.0]
[1740352505439,6.9112,169.17,169.04,20.0]
[1740352505646,23.0192735,169.05,169.01,5.9168]
[1740352505882,23.0192735,169.09,169.01,5.9168]
[1740352506065,1.0,169.18,169.04,20.0]
[1740352506261,16.71,169.2,169.04,20.0]
[1740352506573,7.45,169.2,169.04,20.0]
[1740352506748,1.0,169.18,169.04,20.0]
[1740352506946,23.0192735,169.11,169.04,23.0192735]
[1740352507143,23.0192735,169.08,169.01,28.9360735]
[1740352507456,23.0192735,169.05,169.0,18.64964886]
[1740352507678,20.0,169.09,169.01,1.0]
[1740352507858,20.97,169.08,168.92,5.9199]
[1740352508037,18.64964886,169.07,168.92,5.9199]
[1740352508359,18.64964886,169.07,168.91,1.88711144]
[1740352508360,21.0,169.02,168.91,0.88711144]
[1740352508559,20.0,169.02,168.91,6.80711144]
[1740352508859,20.0,169.02,168.96,23.0192735]
[1740352509085,20.0,168.97,168.87,5.9215]
[1740352509359,23.0192735,168.98,168.92,23.0192735]
[1740352509579,18.64964886,168.99,168.86,5.9218]
[1740352509742,20.0,168.98,168.86,5.9218]
[1740352509939,20.0,168.98,168.83,5.9228]
[1740352510187,0.97,169.03,168.85,1.0]
[1740352510352,0.97,169.03,168.9,1.0]
[1740352510540,19.61964886,169.0,168.89,1.0]
[1740352510732,6.8847,169.07,168.98,37.2283656]
[1740352510937,0.97,169.07,168.96,37.2283656]
[1740352511135,113.5,169.09,169.01,37.2283656]
[1740352511336,113.5,169.09,169.04,37.2283656]
[1740352511640,126.4293,169.12,169.06,37.2283656]
[1740352511869,37.2283656,169.11,169.04,37.2283656]
[1740352512159,6.0462,169.12,169.05,37.2283656]
[1740352512359,6.0462,169.12,169.07,37.2283656]
[1740352512578,6.0462,169.12,169.06,37.2283656]
[1740352512956,19.61964886,169.11,169.0,37.2283656]
[1740352513175,37.2283656,169.06,168.98,20.0]
[1740352513373,18.64964886,169.09,169.0,37.2283656]
[1740352513558,18.64964886,169.09,168.98,20.0]
[1740352513759,18.64964886,169.07,169.01,37.2283656]
[1740352514061,18.64964886,169.07,168.92,5.9199]
[1740352514062,37.2283656,169.07,168.92,5.9199]
[1740352514257,37.2283656,169.05,168.92,5.9199]
[1740352514454,18.64964886,169.04,168.98,37.2283656]
[1740352514676,132.14964886,169.04,168.96,37.2283656]
[1740352514962,37.2283656,169.07,169.0,37.2283656]
[1740352515179,18.64964886,169.04,168.9,5.9205]
[1740352515388,37.2283656,169.02,168.95,37.2283656]
[1740352515577,37.2283656,169.03,168.96,37.2283656]
[1740352515784,61.79381446,169.04,168.97,37.2283656]
[1740352516090,37.2283656,169.03,168.96,37.2283656]
[1740352516261,37.2283656,169.02,168.95,37.2283656]
[1740352516460,18.64964886,169.03,168.97,37.2283656]
[1740352516760,37.2283656,169.01,168.94,37.2283656]
[1740352517070,37.2283656,169.02,168.95,37.2283656]
[1740352517268,37.2283656,169.03,168.96,37.2283656]
[1740352517464,5.9166,169.02,168.97,37.2283656]
[1740352517670,119.416,169.04,168.99,37.2283656]
[1740352517877,5.916,169.04,168.99,37.2283656]
[1740352518583,38.7925656,169.06,168.99,37.2283656]
[1740352518762,5.9153,169.06,169.02,37.2283656]
[1740352518962,5.9153,169.06,169.01,37.2283656]
[1740352519164,5.9153,169.06,169.02,37.2283656]
[1740352519481,5.9143,169.08,169.02,37.2283656]
[1740352519677,5.9143,169.08,169.03,37.2283656]
[1740352519995,5.9143,169.08,169.04,37.2283656]
[1740352520191,5.9143,169.08,169.05,37.2283656]
[1740352520384,6.0762,169.12,169.07,37.2283656]
[1740352520586,6.0762,169.12,168.98,19.64964886]
[1740352520587,5.9429,169.12,169.08,37.2283656]
[1740352520902,5.9429,169.12,169.06,37.2283656]
[1740352521196,5.9429,169.12,169.08,37.2283656]
[1740352521373,0.03,169.12,169.09,37.2283656]
[1740352521689,0.03,169.12,169.08,37.2283656]
[1740352521904,0.03,169.12,169.1,37.2283656]
[1740352522219,0.03,169.12,169.08,37.2283656]
[1740352522383,0.03,169.12,169.11,37.2283656]
[1740352522689,0.03,169.12,169.1,37.2283656]
[1740352522886,0.03,169.12,169.06,37.2283656]
[1740352522887,37.2583656,169.12,169.06,37.2283656]
[1740352523186,0.03,169.12,169.02,20.0]
[1740352523366,37.2283656,169.1,169.02,20.0]
[1740352523575,5.914,169.09,169.03,37.2283656]
[1740352523805,37.2283656,169.11,169.05,37.2283656]
[1740352523986,43.1416656,169.11,169.04,37.2283656]
[1740352524292,37.2283656,169.07,169.0,37.2283656]
[1740352524466,37.2283656,169.04,168.98,37.2283656]
[1740352524667,18.64964886,169.06,168.93,5.9196]
[1740352524871,37.2283656,169.04,168.97,37.2283656]
[1740352525100,37.2283656,169.01,168.94,37.2283656]
[1740352525298,37.2283656,168.99,168.92,37.2283656]
[1740352525501,37.2283656,169.0,168.94,37.2283656]
[1740352525796,37.2283656,169.01,168.94,37.2283656]
[1740352525980,37.2283656,169.01,168.95,37.2283656]
[1740352526492,18.64964886,168.99,168.93,37.2283656]
[1740352526684,18.64964886,168.99,168.85,109.5]
[1740352526685,37.2283656,168.97,168.91,37.2283656]
[1740352526897,37.2283656,168.98,168.91,37.2283656]
[1740352527385,37.2283656,169.0,168.94,37.2283656]
[1740352527594,5.9171,169.0,168.91,5.92]
[1740352527893,5.9171,169.0,168.96,37.2283656]
[1740352528097,5.9171,169.0,168.94,37.2283656]
[1740352528312,5.9171,169.0,168.92,37.2283656]
[1740352528313,37.2283656,168.98,168.92,37.2283656]
[1740352528870,43.1454656,169.0,168.93,37.2283656]
[1740352529286,43.1454656,169.0,168.94,37.2283656]
[1740352529497,5.9171,169.0,168.94,37.2283656]
[1740352529787,43.1454656,169.0,168.93,37.2283656]
[1740352529965,43.1454656,169.0,168.94,37.2283656]
[1740352530169,43.1454656,169.0,168.92,37.2283656]
[1740352530170,37.2283656,168.99,168.92,37.2283656]
[1740352530503,37.2283656,168.98,168.92,37.2283656]
[1740352530706,37.2283656,168.95,168.89,37.2283656]
[1740352530931,37.2283656,168.9,168.79,5.9245]
[1740352531092,37.2283656,168.86,168.8,37.2283656]
[1740352531269,37.2283656,168.87,168.8,37.2283656]
[1740352531471,6.4369,168.91,168.75,0.063]
[1740352531689,18.64964886,168.89,168.75,5.9889]
[1740352531889,5.9206,168.9,168.78,20.0]
[1740352532093,20.7222,168.9,168.75,5.9889]
[1740352532605,37.2283656,168.84,168.78,37.2283656]
[1740352532774,37.2283656,168.82,168.76,37.2283656]
[1740352532973,37.2283656,168.81,168.75,0.063]
[1740352533602,37.2283656,168.8,168.75,0.063]
[1740352533776,37.2283656,168.78,168.75,0.063]
[1740352534190,37.2283656,168.76,168.75,0.063]
[1740352534394,113.5,168.78,168.75,0.063]
[1740352534587,150.7283656,168.78,168.75,0.063]
[1740352535108,5.9227,168.85,168.77,37.2283656]
[1740352535295,5.921,168.89,168.83,37.2283656]
[1740352535492,6.4369,168.91,168.86,37.2283656]
[1740352535684,12.3575,168.91,168.86,37.2283656]
[1740352535890,6.4369,168.91,168.87,37.2283656]
[1740352536100,18.64964886,168.87,168.75,0.063]
[1740352536302,37.2283656,168.85,168.78,37.2283656]
[1740352536887,113.5,168.86,168.81,37.2283656]
[1740352537204,37.2283656,168.87,168.81,37.2283656]
[1740352537401,37.2283656,168.88,168.81,37.2283656]
[1740352537577,37.2283656,168.87,168.81,37.2283656]
[1740352537991,37.2283656,168.84,168.78,37.2283656]
[1740352538182,113.5,168.86,168.77,37.2283656]
[1740352538183,37.2283656,168.83,168.77,37.2283656]
[1740352538381,37.2283656,168.84,168.78,37.2283656]
[1740352538605,37.2283656,168.84,168.77,37.2283656]
[1740352538980,37.2283656,168.83,168.77,37.2283656]
[1740352539191,37.2283656,168.84,168.78,37.2283656]
[1740352539574,150.7283656,168.86,168.8,37.2283656]
[1740352539783,119.4221,168.86,168.8,37.2283656]
[1740352540003,156.6504656,168.86,168.8,37.2283656]
[1740352540201,156.6504656,168.86,168.79,37.2283656]
[1740352540397,37.2283656,168.83,168.77,37.2283656]
[1740352540594,37.2283656,168.82,168.75,37.2913656]
[1740352540800,37.2283656,168.81,168.75,37.2913656]
[1740352541002,37.2283656,168.83,168.77,37.2283656]
[1740352541610,37.2283656,168.84,168.77,37.2283656]
[1740352541902,37.2283656,168.83,168.75,0.063]
[1740352542111,37.2283656,168.81,168.75,0.063]
[1740352542281,37.2283656,168.8,168.75,0.063]
[1740352542481,18.64964886,168.8,168.75,0.063]
[1740352542689,37.2283656,168.77,168.75,0.063]
[1740352543102,37.2283656,168.76,168.75,0.063]
[1740352543301,119.8138,168.79,168.75,0.063]
[1740352543600,38.7407656,168.81,168.75,37.2913656]
[1740352543782,38.7407656,168.81,168.75,0.063]
[1740352543783,43.1524656,168.8,168.75,0.063]
[1740352544109,37.2283656,168.78,168.75,0.063]
[1740352544585,55.87801446,168.79,168.75,0.063]
[1740352544781,37.2283656,168.78,168.75,0.063]
[1740352545091,55.87801446,168.79,168.75,0.063]
[1740352545303,37.2283656,168.78,168.75,0.063]
[1740352545886,43.1535656,168.77,168.75,0.063]
[1740352546513,169.37801446,168.76,168.75,0.063]
[1740352546829,20.0,168.72,168.62,5.9304]
[1740352547042,37.2283656,168.7,168.64,37.2283656]
[1740352547324,55.87801446,168.72,168.65,37.2283656]
[1740352547527,43.4170656,168.73,168.67,37.2283656]
[1740352547835,37.2283656,168.72,168.65,37.2283656]
[1740352548007,37.2283656,168.71,168.64,37.2283656]
[1740352548599,49.3438656,168.73,168.66,37.2283656]
[1740352548804,6.1887,168.73,168.68,37.2283656]
[1740352549315,43.4170656,168.73,168.67,37.2283656]
[1740352549511,37.2283656,168.72,168.65,37.2283656]
[1740352549813,37.2283656,168.71,168.64,37.2283656]
[1740352550004,5.9276,168.7,168.64,37.2283656]
[1740352550520,37.2283656,168.71,168.65,37.2283656]
[1740352550688,43.1557656,168.71,168.65,37.2283656]
[1740352551118,5.9274,168.71,168.65,37.2283656]
[1740352551493,113.5,168.77,168.64,43.1580656]
[1740352551692,37.2283656,168.74,168.67,37.2283656]
[1740352552215,5.9255,168.76,168.7,37.2283656]
[1740352552398,5.9252,168.77,168.72,37.2283656]
[1740352552598,12.2447,168.78,168.72,37.2283656]
[1740352552806,49.4730656,168.78,168.72,37.2283656]
[1740352553032,43.1524656,168.8,168.73,37.2283656]
[1740352553203,43.1524656,168.8,168.74,37.2283656]
[1740352553731,38.7407656,168.81,168.74,37.2283656]
[1740352553886,5.9235,168.82,168.77,37.2283656]
[1740352554221,6.3198,168.83,168.78,37.2283656]
[1740352554390,6.3198,168.83,168.77,37.2283656]
[1740352554594,43.1510656,168.85,168.79,37.2283656]
[1740352554997,43.1504656,168.86,168.8,37.2283656]
[1740352555389,43.1504656,168.86,168.73,20.7431]
[1740352555390,37.2283656,168.85,168.79,37.2283656]
[1740352555598,37.2283656,168.84,168.77,37.2283656]
[1740352555812,5.9221,168.86,168.75,37.2283656]
[1740352555813,37.2283656,168.81,168.75,37.2283656]
[1740352556015,37.2283656,168.79,168.72,37.2283656]
[1740352556402,5.9241,168.8,168.72,37.2283656]
[1740352556403,37.2283656,168.78,168.72,37.2283656]
[1740352556601,37.2283656,168.77,168.71,37.2283656]
[1740352556804,37.2283656,168.79,168.72,37.2283656]
[1740352557716,37.2283656,168.78,168.72,37.2283656]
[1740352558022,37.2283656,168.78,168.66,14.8222]
[1740352558023,37.2283656,168.77,168.71,37.2283656]
[1740352559131,37.2283656,168.78,168.72,37.2283656]
[1740352559496,37.2283656,168.78,168.71,37.2283656]
[1740352559730,37.2283656,168.79,168.73,37.2283656]
[1740352560220,5.9241,168.8,168.75,37.2283656]
[1740352560608,37.2583656,168.79,168.73,37.2283656]
[1740352560938,37.2283656,168.76,168.72,0.063]
[1740352561089,0.03,168.79,168.72,0.063]
[1740352561090,37.2283656,168.74,168.72,0.063]
[1740352561521,37.2283656,168.73,168.72,0.063]
[1740352561717,22.97567303,168.74,168.72,0.063]
[1740352561925,28.90177303,168.75,168.72,0.063]
[1740352562296,22.97567303,168.74,168.72,0.063]
[1740352562620,22.97567303,168.73,168.72,0.063]
[1740352563414,28.90227303,168.73,168.72,0.063]
[1740352563626,43.26564542,168.73,168.72,0.063]
[1740352566627,5.9266,168.73,168.72,0.063]
[1740352567013,43.26564542,168.73,168.72,0.063]
[1740352567602,61.91529428,168.73,168.72,0.063]
[1740352568010,43.26564542,168.73,168.72,0.063]
[1740352568618,61.91529428,168.73,168.72,0.063]
[1740352569114,61.91529428,168.73,168.61,81.1]
[1740352569115,37.33904542,168.66,168.61,81.1]
[1740352569314,37.33904542,168.66,168.59,37.33904542]
[1740352569610,150.83904542,168.7,168.63,37.33904542]
[1740352569808,37.33904542,168.69,168.62,37.33904542]
[1740352570032,37.33904542,168.68,168.62,37.33904542]
[1740352570214,37.33904542,168.69,168.62,37.33904542]
[1740352570719,128.3187,168.71,168.67,37.33904542]
[1740352570720,119.4273,168.71,168.67,37.33904542]
[1740352570934,5.9273,168.71,168.67,37.33904542]
[1740352571425,5.9273,168.71,168.66,37.33904542]
[1740352571851,43.26594542,168.72,168.66,37.33904542]
[1740352572009,37.33904542,168.7,168.63,37.33904542]
[1740352572326,37.33904542,168.68,168.62,37.33904542]
[1740352572528,37.33904542,168.7,168.63,37.33904542]
[1740352572732,37.33904542,168.69,168.63,37.33904542]
[1740352572947,5.9269,168.72,168.58,37.40204542]
[1740352572948,37.33904542,168.64,168.58,37.40204542]
[1740352573617,37.33904542,168.6,168.58,0.063]
[1740352573810,37.33904542,168.59,168.58,0.063]
[1740352574211,169.48869428,168.59,168.58,0.063]
[1740352574405,55.98869428,168.59,168.58,0.063]
[1740352575105,37.33904542,168.59,168.58,0.063]
[1740352575513,55.98869428,168.59,168.58,0.063]
[1740352575715,43.27054542,168.59,168.58,0.063]
[1740352575945,61.92019428,168.59,168.58,0.063]
[1740352576912,43.27054542,168.59,168.58,0.063]
[1740352577508,37.33904542,168.61,168.58,0.063]
[1740352577707,14.8237,168.65,168.58,0.063]
[1740352577708,37.33904542,168.62,168.58,0.063]
[1740352577909,37.33904542,168.61,168.58,0.063]
[1740352578116,37.33904542,168.62,168.58,0.063]
[1740352578317,5.9297,168.64,168.58,37.40204542]
[1740352579037,37.33904542,168.63,168.58,0.063]
[1740352579239,37.33904542,168.62,168.58,0.063]
[1740352579432,43.26974542,168.62,168.58,0.063]
[1740352580225,18.64964886,168.65,168.58,37.40204542]
[1740352580226,5.9301,168.63,168.58,37.40204542]
[1740352580433,119.4297,168.65,168.59,37.33904542]
[1740352580819,37.33904542,168.63,168.58,0.063]
[1740352581031,37.33904542,168.62,168.58,0.063]
[1740352581737,43.26934542,168.63,168.58,0.063]
[1740352581911,37.33904542,168.6,168.58,0.063]
[1740352582113,37.33904542,168.59,168.58,0.063]
[1740352582310,150.83904542,168.62,168.58,0.063]
[1740352582611,37.33904542,168.61,168.58,0.063]
[1740352582843,37.33904542,168.6,168.58,0.063]
[1740352583043,37.33904542,168.59,168.58,0.063]
[1740352583423,61.92019428,168.59,168.58,0.063]
[1740352583635,61.92019428,168.59,168.58,0.0001]
[1740352584040,43.27054542,168.59,168.58,0.0001]
[1740352584541,113.5,168.61,168.58,0.0001]
[1740352584739,37.33904542,168.63,168.58,0.0001]
[1740352585117,37.33904542,168.61,168.58,0.0001]
[1740352585652,28.93334038,168.63,168.58,0.0001]
[1740352586325,14.8233,168.66,168.6,23.00324038]
[1740352586326,5.929,168.66,168.6,23.00324038]
[1740352586521,142.43164038,168.68,168.62,23.00324038]
[1740352586719,119.4284,168.68,168.63,23.00324038]
[1740352587247,28.93064038,168.71,168.65,23.00324038]
[1740352587616,23.03324038,168.72,168.66,23.00324038]
[1740352587812,23.03324038,168.72,168.67,23.00324038]
[1740352587813,0.03,168.72,168.67,23.00324038]
[1740352588041,0.03,168.72,168.68,23.00324038]
[1740352588246,0.03,168.72,168.71,23.00324038]
[1740352588519,0.03,168.76,168.71,23.00324038]
[1740352588520,0.03,168.76,168.74,20.0]
[1740352588725,0.03,168.76,168.75,23.00324038]
[1740352589116,0.03,168.76,168.74,23.00324038]
[1740352589316,0.03,168.76,168.75,23.00324038]
[1740352589518,0.03,168.76,168.73,23.00324038]
[1740352589716,0.03,168.76,168.71,23.00324038]
[1740352589967,0.03,168.76,168.71,28.93054038]
[1740352590149,23.00324038,168.75,168.69,28.93094038]
[1740352590454,23.00324038,168.75,168.68,23.00324038]
[1740352590623,23.00324038,168.74,168.66,12.4901]
[1740352590819,23.00324038,168.73,168.67,23.00324038]
[1740352591046,0.03,168.76,168.61,101.9891]
[1740352591047,23.00324038,168.72,168.66,23.00324038]
[1740352591255,23.00324038,168.71,168.65,23.00324038]
[1740352591456,23.00324038,168.72,168.66,23.00324038]
[1740352591625,23.00324038,168.73,168.67,23.00324038]
[1740352592023,23.00324038,168.74,168.67,23.00324038]
[1740352592258,113.5,168.75,168.7,23.00324038]
[1740352592549,0.03,168.76,168.73,23.00324038]
[1740352592718,0.03,168.76,168.75,23.00324038]
[1740352592918,0.03,168.76,168.73,23.00324038]
[1740352593120,23.00324038,168.75,168.67,81.1]
[1740352593315,23.00324038,168.75,168.69,23.00324038]
[1740352593548,23.00324038,168.74,168.64,28.93274038]
[1740352593737,23.00324038,168.74,168.67,23.00324038]
[1740352594048,23.00324038,168.72,168.61,11.9932]
[1740352594254,23.00324038,168.7,168.64,23.00324038]
[1740352594645,23.00324038,168.68,168.61,23.00324038]
[1740352594836,23.00324038,168.67,168.61,23.00324038]
[1740352595037,23.00324038,168.68,168.62,23.00324038]
[1740352595253,136.50324038,168.7,168.64,23.00324038]
[1740352595455,113.5,168.7,168.67,23.00324038]
[1740352595669,80.8,168.72,168.69,23.00324038]
[1740352595835,80.8,168.72,168.7,23.00324038]
[1740352596151,5.9259,168.75,168.7,23.00324038]
[1740352596368,28.92914038,168.75,168.69,23.00324038]
[1740352596573,0.03,168.72,168.67,23.00324038]
[1740352597251,0.03,168.72,168.7,23.00324038]
[1740352597841,0.03,168.72,168.67,23.00324038]
[1740352598030,0.03,168.72,168.68,23.00324038]
[1740352598230,0.03,168.72,168.67,23.00324038]
[1740352598542,103.83324038,168.72,168.66,23.00324038]
[1740352599137,80.83,168.72,168.66,23.00324038]
[1740352599342,80.83,168.72,168.69,23.00324038]
[1740352599544,80.83,168.72,168.7,23.00324038]
[1740352599842,0.03,168.72,168.7,23.00324038]
[1740352600053,0.03,168.72,168.71,23.00324038]
[1740352600435,0.03,168.72,168.69,23.00324038]
[1740352600773,0.03,168.72,168.67,5.9287]
[1740352601053,0.03,168.72,168.67,23.00324038]
[1740352601439,0.03,168.72,168.68,23.00324038]
[1740352601844,0.03,168.72,168.67,23.00324038]
[1740352602158,23.00324038,168.7,168.63,23.00324038]
[1740352602339,23.00324038,168.68,168.62,28.93364038]
[1740352602532,23.00324038,168.68,168.62,23.00324038]
[1740352602734,23.00324038,168.67,168.61,23.06624038]
[1740352603036,194.3,168.7,168.61,23.06624038]
[1740352603037,23.00324038,168.65,168.61,0.063]
[1740352603235,23.00324038,168.66,168.61,0.063]
[1740352604052,28.93234038,168.66,168.61,0.063]
[1740352604238,194.3,168.68,168.62,23.00324038]
[1740352604239,200.2286,168.68,168.62,23.00324038]
[1740352604443,223.23184038,168.68,168.62,23.00324038]
[1740352604643,217.30324038,168.68,168.62,23.00324038]
[1740352604963,194.3,168.68,168.66,23.00324038]
[1740352605139,5.9273,168.71,168.66,23.00324038]
[1740352605335,80.83,168.72,168.69,23.00324038]
[1740352605548,80.83,168.72,168.64,23.00324038]
[1740352605549,0.03,168.72,168.67,23.00324038]
[1740352606253,0.03,168.72,168.67,28.93194038]
[1740352607149,0.03,168.72,168.68,23.00324038]
[1740352607659,0.03,168.72,168.67,23.00324038]
[1740352608064,0.03,168.72,168.68,23.00324038]
[1740352609378,0.03,168.72,168.67,28.93194038]
[1740352609677,23.00324038,168.71,168.66,0.063]
[1740352609831,23.00324038,168.68,168.66,0.063]
[1740352610464,23.00324038,168.67,168.66,0.063]
[1740352610764,23.00324038,168.68,168.66,0.063]
[1740352610969,5.9287,168.67,168.66,0.063]
[1740352612564,28.93194038,168.67,168.66,0.063]
[1740352614637,28.93134038,168.69,168.66,0.063]
[1740352615039,5.9281,168.69,168.66,0.063]
[1740352615335,28.93134038,168.69,168.66,0.063]
[1740352615548,136.50324038,168.7,168.66,0.063]
[1740352615765,113.5,168.7,168.66,23.06624038]
[1740352615942,113.5,168.7,168.66,0.063]
[1740352616653,0.03,168.72,168.67,23.00324038]
[1740352617758,23.03324038,168.72,168.66,23.06624038]
[1740352618160,23.03324038,168.72,168.66,0.063]
[1740352618775,23.00324038,168.67,168.66,0.063]